Cogmind - Beta 16.1 @@@ ROGUE MODE // 2026.03.23 @ 16:22:47 Player: Skrub Result: Destroyed by 9M-QPL(R) with Subdweller Machine Gun Performance ------------- Evolutions (0) 0 Regions Visited (2) 400 Robots Destroyed (17) 85 Value Destroyed (328) 328 Prototype IDs (1) 20 Alien Tech Used (0) 0 Bonus (0) 0 TOTAL SCORE: 833 Bonus ------- None Cogmind --------- Core Integrity 0/250 Matter 300/300 Energy 160/170 System Corruption 0% Temperature Cool (0) Movement Core (100) Ox1 Location -10/Subcaves Parts ------- > --- POWER (1) -------- Makeshift Power Source > --- PROPULSION (2) --- (None) > --- UTILITY (2) ------ Heat Sink Sensor Array > --- WEAPON (2) ------- (None) > --- INVENTORY (5) ---- Subdweller Power Source Advanced Beam Cannon Advanced Beam Cannon Assault Rifle Subdweller Machine Gun Peak State ------------ > --- POWER ------------ Makeshift Power Source > --- PROPULSION ------- Light Treads > --- UTILITY ---------- Heat Sink Sensor Array > --- WEAPON ----------- Advanced Beam Cannon Advanced Beam Cannon > --- INVENTORY -------- Light Ion Engine Assault Rifle Subdweller Machine Gun [Rating: 13] Favorites ----------- Power Makeshift Power Source Engine Makeshift Power Source Propulsion Flight Unit Treads Light Treads Leg Aluminum Leg Hover Unit Hover Unit Flight Unit Flight Unit Utility Targeting Computer Device Sensor Array Storage Small Storage Unit Processor Targeting Computer Weapon Advanced Beam Cannon Energy Cannon Advanced Beam Cannon Ballistic Gun Assault Rifle Build | -11 -10 -10 ------- Run | Yrd Mat Sub Slots Evolved . | . . . Power . | . . . Propulsion . | . . . Utility . | . . . Weapon . | . . . Parts Attached 24 | 6 12 6 Power 3 | 1 1 1 Engine 3 | 1 1 1 Core . | . . . Reactor . | . . . Propulsion 10 | 2 7 1 Treads 1 | . . 1 Leg 2 | 2 . . Wheel . | . . . Hover 2 | . 2 . Flight 5 | . 5 . Utility 6 | 1 3 2 Device 2 | . . 2 Storage 1 | 1 . . Processor 3 | . 3 . Hackware . | . . . Protection . | . . . Artifact . | . . . Weapon 5 | 2 1 2 Energy Gun . | . . . Energy Cannon 2 | . 1 1 Ballistic Gun 3 | 2 . 1 Ballistic Cannon . | . . . Launcher . | . . . Special Weapon . | . . . Impact Weapon . | . . . Slashing Weapon . | . . . Piercing Weapon . | . . . Special Melee Weapon . | . . . Unidentified Prototypes 1 | . 1 . Parts Lost 8 | . 3 5 Power . | . . . Propulsion 6 | . 3 3 Utility 1 | . . 1 Weapon 1 | . . 1 Highest Loss Streak 3 | . 3 3 To Critical Strikes . | . . . Average Backups 3 | 1 4 3 Power . | . 1 1 Propulsion . | . 1 . Utility . | . . . Weapon 1 | . . 2 Tool/Special . | . . . Unused Backups 4 | . 2 2 Power 2 | . . 2 Propulsion . | . . . Utility 1 | . 1 . Weapon 1 | . 1 . Tool/Special . | . . . Average Slot Usage (%) 90 | . 97 83 Engine 14 | . 14 14 Treads 5 | . . 11 Hover 6 | . 8 5 Flight 8 | . 17 . Device 12 | . . 24 Processor 12 | . 25 . Energy Cannon 10 | . . 21 Ballistic Gun 17 | . 28 6 Peak Build Rating 13 | 6 9 13 Average Rating 8 | 5 6 11 On Entrance 4 | . 6 7 Avg Prop Armor Cover (%) 5 | . . 5 Naked Turns . | . . . Heaviest Build 14 | 11 11 14 Greatest Support 20 | 20 20 20 Greatest Overweight (x) 3 | 3 2 . Average Overweight (x) . | . . . Largest Inventory Capacity 8 | 8 8 5 Average Capacity 5 | 7 5 5 Most Carried 5 | 2 5 5 Average Carried 3 | 1 4 3 Final Capacity 8 | 8 5 5 Final Carried 5 | 2 5 5 Class Distribution -------------------- 100% | Mutant Dominant Class ---------------- Mutant | -10/Materials Mutant | -10/Subcaves Resources | -11 -10 -10 ----------- Run | Yrd Mat Sub Matter Collected 623 | 237 177 209 Remotely . | . . . Salvage Created 486 | 60 256 170 Parts 31 | 2 16 13 Haulers Intercepted . | . . . Recyclers Shooed . | . . . Parts Field Recycled . | . . . Retrieved Matter . | . . . Parts Self-Destructed 11 | . . 11 Prevented . | . . . Parts Restored . | . . . Kills | -11 -10 -10 ------- Run | Yrd Mat Sub Combat Hostiles Destroyed 14 | . 8 6 Guns 12 | . 8 4 Cannons 2 | . . 2 Classes Destroyed 6 | 1 3 2 Recycler 2 | 1 1 . Watcher 1 | . 1 . Swarmer 9 | . 6 3 Grunt 3 | . 2 1 Sentry 1 | . . 1 Subdweller 1 | . . 1 Best Kill Streak 7 | 1 7 3 Combat Bots Only 5 | . 5 3 Max Kills in Single Turn 1 | 1 1 1 Gunslinging . | . . . Exploded . | . . . Melee . | . . . Uniques/NPCs Destroyed . | . . . Combat | -11 -10 -10 -------- Run | Yrd Mat Sub Hostile Shots Fired 119 | . 36 83 Missed 39 | . 9 30 Hits 80 | . 27 53 Projectile 80 | . 27 53 Critical Strikes 3 | . 2 1 Damage Taken 1007 | . 353 654 Core 250 | . 124 126 Absorbed by Shields . | . . . Core Remaining (%) 100 | 100 . . Volleys Fired 56 | 6 32 18 Largest 2 | 2 2 2 Hottest 136 | 40 40 136 Shots Fired 112 | 12 64 36 Gun 94 | 12 64 18 Cannon 18 | . . 18 Launcher . | . . . Special . | . . . Kinetic 94 | 12 64 18 Thermal 18 | . . 18 Explosive . | . . . Electromagnetic . | . . . Robot Hit Streak 12 | 2 5 12 Robot Miss Streak 5 | 4 5 2 Penetration Max . | . . . Secondary Targets 1 | . 1 . Max Gunslinging Chain 1 | . 1 . Shots Hit Robots 63 | 5 37 21 Core Hits 28 | 2 19 7 Critical Kills . | . . . Critical Parts Destroyed . | . . . Critical Strikes . | . . . Melee Attacks . | . . . Impact . | . . . Slashing . | . . . Piercing . | . . . Sneak Attacks . | . . . Combat Hostiles . | . . . Follow-up Attacks . | . . . Damage Inflicted 939 | 75 479 385 Guns 616 | 75 383 158 Cannons 227 | . . 227 Explosions 96 | . 96 . Melee . | . . . Ramming . | . . . Kinetic 616 | 75 383 158 Thermal 227 | . . 227 Explosive 96 | . 96 . Electromagnetic . | . . . Impact . | . . . Slashing . | . . . Piercing . | . . . Highest Corruption . | . . . Average Corruption . | . . . Corruption Purged . | . . . Corruption Blocked . | . . . Overload Shots . | . . . Overflow Damage 4 | . 4 . Projectiles . | . . . Explosions 4 | . 4 . Melee . | . . . Knockbacks . | . . . Impact . | . . . Kinetic . | . . . Secondary . | . . . Self-Inflicted Damage 67 | . 67 . Shots 1 | . 1 . Rammed . | . . . Targets Rammed . | . . . Kicked . | . . . Crushed . | . . . Highest Temperature 48 | . 21 48 Average Temperature 7 | . 5 13 Received Heat Transfer 363 | . 111 252 Siege Activations . | . . . Martial Activations . | . . . Shielding Activations . | . . . Robots Disrupted . | . . . Combat Hostiles . | . . . Robots Corrupted . | . . . Combat Hostiles . | . . . Parts Fried . | . . . Impact Corruptions . | . . . Robots Melted . | . . . Combat Hostiles . | . . . Parts Melted 2 | . . 2 Heat Transferred 407 | . . 407 Parts Sabotaged . | . . . Parts Stolen . | . . . Parts Stripped . | . . . Power Chain Reactions . | . . . Alert | -11 -10 -10 ------- Run | Yrd Mat Sub Maximum Alert Level . | . . . Low Security (%) 100 | 100 100 . Level 1 . | . . . Level 2 . | . . . Level 3 . | . . . Level 4 . | . . . Level 5 . | . . . High Security . | . . . Max Security . | . . . Peak Influence 184 | 5 184 . Initial . | . . . Average 73 | . 87 . Influence Increases 593 | 5 368 220 Destroy 0b10 Robot/C 260 | . 160 100 Destroy 0b10 Robot/NC 15 | 5 10 . Destroy Leader 32 | . 32 . Successful Hack 47 | . 47 . Disable Machine 15 | . 15 . Destroy Structure 14 | . 14 . Lose Combat Pursuer 210 | . 90 120 Influence Decreases 593 | 5 276 312 Entered New Map 45 | . . 45 Time Decay 478 | 5 246 227 Lost Part 70 | . 30 40 Squads Dispatched . | . . . Investigation . | . . . Extermination . | . . . Reinforcement . | . . . Assault . | . . . Garrison . | . . . Intercept . | . . . Searches Triggered . | . . . Construction Impeded . | . . . Haulers Reinforced . | . . . Active Scanning Responses . | . . . Cargo Convoy Interrupts . | . . . Stealth | -11 -10 -10 --------- Run | Yrd Mat Sub Distress Signals 1 | . 1 . Communications Jammed . | . . . Distress Signals . | . . . Times Spotted 37 | . 21 16 Peak Tracking Total 7 | . 6 7 Tactical Retreats 7 | . 3 4 Traps | -11 -10 -10 ------- Run | Yrd Mat Sub Traps Triggered . | . . . Indirectly . | . . . Trap Hack Attempts . | . . . Triggered . | . . . Disarmed . | . . . Reprogrammed . | . . . Reused . | . . . Traps Extracted . | . . . Installed . | . . . Triggered . | . . . Machines | -11 -10 -10 ---------- Run | Yrd Mat Sub Machines Disabled 1 | . 1 . Max in Single Turn 1 | . 1 . Machines Repaired . | . . . Machines Dismantled . | . . . Machines Sabotaged . | . . . Overloaded Fab Kills . | . . . Hacking | -11 -10 -10 --------- Run | Yrd Mat Sub Machines Accessed 11 | . 11 . Terminals 8 | . 8 . Fabricators . | . . . Repair Stations 1 | . 1 . Recycling Units 2 | . 2 . Scanalyzers . | . . . Garrison Access . | . . . Total Hacks 38 | . 38 . Successful 24 | . 24 . Failed 14 | . 14 . Catastrophic 1 | . 1 . Database Lockouts . | . . . Manual 38 | . 38 . Terminals 29 | . 29 . Fabricators . | . . . Repair Stations 1 | . 1 . Recycling Units 8 | . 8 . Scanalyzers . | . . . Garrison Access . | . . . Terminal Hacks 3 | . 3 . Part Schematic 1 | . 1 . Emergency Access Points 1 | . 1 . Hauler Manifests 1 | . 1 . Fabricator Hacks . | . . . Repair Station Hacks . | . . . Recycling Unit Hacks 1 | . 1 . Report Inventory 1 | . 1 . Scanalyzer . | . . . Garrison Access Hacks . | . . . Unauthorized Hacks 20 | . 20 . Terminals 14 | . 14 . Assimilate 1 | . 1 . Botnet 7 | . 7 . Disrupt 1 | . 1 . Skim 5 | . 5 . Fabricators . | . . . Repair Stations 1 | . 1 . Mechanics 1 | . 1 . Recycling Units 5 | . 5 . Reject 1 | . 1 . Recyclers 2 | . 2 . Mask 2 | . 2 . Scanalyzers . | . . . Garrison Access . | . . . Data Cores Recovered . | . . . Used . | . . . Hacking Detections 9 | . 9 . Full Trace Events . | . . . Feedback Events . | . . . Feedback Blocked . | . . . Robot Schematics Acquired . | . . . Robots Built . | . . . Authchips . | . . . Time . | . . . Total Robot Build Rating . | . . . Part Schematics Acquired 1 | . 1 . Parts Built . | . . . Authchips . | . . . Time . | . . . Total Part Build Rating . | . . . Part Studies Acquired . | . . . Parts Repaired . | . . . Time . | . . . Parts Recycled . | . . . Recycled Matter . | . . . Retrieved Matter . | . . . Retrieved Components . | . . . Parts Scanalyzed . | . . . Part Schematics Acquired . | . . . Parts Damaged . | . . . Bothacking | -11 -10 -10 ------------ Run | Yrd Mat Sub Used RIF Installer . | . . . Robots Hacked . | . . . Non-combat . | . . . Combat . | . . . Robot Hacks Applied . | . . . Relay Couplers Released . | . . . Fabnet Peak Effective % . | . . . Robots Rewired . | . . . Allies Hacked . | . . . Hacks Repelled . | . . . Allies | -11 -10 -10 -------- Run | Yrd Mat Sub Total Allies . | . . . Largest Group . | . . . Highest-Rated Group . | . . . Highest-Rated Ally . | . . . Total Orders . | . . . Ally Attacks . | . . . Total Damage . | . . . Kills . | . . . Allies Corrupted . | . . . Allies Melted . | . . . Intel | -11 -10 -10 ------- Run | Yrd Mat Sub Active Infowar (turns) 567 | . . 567 Sensors 567 | . . 567 Robot Analysis Total . | . . . Derelict Logs Recovered . | . . . Drone Launches . | . . . Drone Recoveries . | . . . Exploration | -11 -10 -10 ------------- Run | Yrd Mat Sub Turns Passed 1249 | 111 570 568 Spaces Moved 1179 | 71 750 358 Core 12 | 12 . . Treads 258 | . . 258 Legs 75 | 59 16 . Wheels . | . . . Hover 132 | . 32 100 Flight 702 | . 702 . Fastest Speed 37 | 50 37 56 Average Speed 72 | 118 39 130 Slowest Speed 200 | 200 200 160 Overloaded Moves . | . . . Propulsion Burnouts . | . . . Robots Hopped . | . . . Potential Cave-ins . | . . . Cave-ins Triggered . | . . . Exploration Rate (%) 40 | 3 98 19 Regions Visited 2 Branch Regions 1 Pre-discovered Areas 5 | . 4 1 Known Exits Taken 1 | . 1 . Unknown Exits Taken 1 | 1 . . Scrap Searched . | . . . Spaces Dug . | . . . Terrain Destroyed 13 | . 13 . Melee . | . . . Projectile . | . . . AOE 13 | . 13 . Terrain Rammed . | . . . Walls Destroyed . | . . . Machines Disabled . | . . . Actions | -11 -10 -10 --------- Run | Yrd Mat Sub Total 1469 | 84 963 422 Wait 178 | . 147 31 Move 1177 | 70 749 358 Hop . | . . . Pick Up 11 | 2 8 1 Fast Attach 20 | 6 10 4 Attach 4 | . 2 2 Detach 5 | . 3 2 Swap 3 | . 1 2 Drop 15 | . 11 4 Fire 56 | 6 32 18 Melee . | . . . Ram . | . . . Kick . | . . . Crush . | . . . Escape Stasis . | . . . Rewire . | . . . Trap . | . . . Miscellaneous . | . . . Route ------- -11/Scrapyard -10/Materials (discovered 6 exits: *Mat x3 / *Min x2 / *Sub) -10/Subcaves (discovered 3 exits: *Mat x2 / *Rec) History --------- Turn | Location | Event 5 | -11/Scrapyard | Discovered new exit (range 15) 112 | -11/Scrapyard | Entered Materials 126 | -10/Materials | Discovered new exit (range 16) 189 | -10/Materials | Discovered new exit (range 16) 236 | -10/Materials | Discovered new exit (range 7) 314 | -10/Materials | Build established: Mutant 364 | -10/Materials | Discovered new exit (range 13) 424 | -10/Materials | Lost 3 parts (3n) 476 | -10/Materials | Discovered new exit (range 14) 481 | -10/Materials | Identified exit to Materials 497 | -10/Materials | Learned location of 2 exits from Subcaves 502 | -10/Materials | Identified exit to Mines 504 | -10/Materials | Discovered new exit (range 10) 531 | -10/Materials | Identified exit to Subcaves 540 | -10/Materials | Learned location of Subcaves (-10) 621 | -10/Materials | Learned location of Storage (-8) 628 | -10/Materials | Learned location of Mines (-9) 645 | -10/Materials | Learned location of 1 exit from Storage 682 | -10/Materials | Entered Subcaves 683 | -10/Subcaves | Identified exit to Materials 683 | -10/Subcaves | Identified exit to Recycling 689 | -10/Subcaves | Core integrity fell below 50% 739 | -10/Subcaves | Learned location of Zion (-6) 739 | -10/Subcaves | Met a Zionite searching for "candidates" 834 | -10/Subcaves | Lost 3 parts (2n1w) 996 | -10/Subcaves | Core integrity fell below 20% 1250 | -10/Subcaves | Destroyed by 9M-QPL(R) with Subdweller Machine Gun Last Messages --------------- 00827_ Acquired 38 matter. 00829_ Imp. Ion Engine fries itself beyond repair. 00829_ Acquired 51 matter. 00830_ Acquired 26 matter. 00838_ Beam Rifle fries itself beyond repair. 00849_ Acquired 10 matter. 00951_ 04-K3P(u) tweaks Twisted Machinery. 01000_ Sub. Monowheel melted. 01000_ Disposable Heat Sink melted. 01000_ 6S-OXX(R) destroyed. 01018_ 04-K3P(u) tweaks Twisted Machinery. 01037_ H6-78B(O) collects matter. 01046_ 04-K3P(u) builds Twisted Machinery. 01051_ 04-K3P(u) tweaks Twisted Machinery. 01059_ H6-78B(O) collects matter. 01062_ 04-K3P(u) tweaks Twisted Machinery. 01203_ Dropped Lgt. Ion Engine. 01204_ Acquired Sub. Power Source. 01248_ Lgt. Treads destroyed. Map ----- +----------------------------------------------------+ | ???# ###### ##???????????????????????????? | | ???# ### # # #???????????????????????????? | | ???# ##???????????????????????????? | | ???#### #????????????????????????????? | | ??????# # # #????????????????????????????? | | ??????# #### ##????????????????????????????? | | ??????#######??#####?????????????????????????????? | | ?????????????????????????????????????????????????? | | ?????????????????????????????????????????????????? | | ?????????????????????????????????????????????????? | | ?????????????????????????????????????????????????? | | ?????????????????????????????????????????????????? | | ?????????????????????????????????????????????????? | | ?????????????????????????????????????????????????? | | ######?????????????????????????????????? ???????? | | ""#????????????????????????????????? ??????? | | """"#????????????????????????????????? ??????? | | ?#" #????????????????????????????????? ??????? | | ?# #????????????????????????????????# ????? | | ## #???????????????????????????????# ""????? | | ##??????????????????????????????# " ????? | | #??????????#########???????????# "?????? | | ## ##?????????# ##??????????# ???????? | | ### #######????# ######?????# ????????? | | ??# ##???????# ## ##?### #?????????? | | ?### #?####### @ %### # ###???????? | | # ### #### ## R ##?????? | | #?## ## # ## | | [#???######### ### ## ### #?? | | ####?????### ### ###?# *### % #?? | | #????## ## #?###???## #?# % #?? | | ##????# ? #????????####?# ####?? | | #???### ####?????????????## ### ###????? | | #??## ##?????????????????# #?? ##??????? | | #### ##??????????????????######??# #???????? | | # ## #????????????????????????????# #??????? | | ## #????????????????????????????? #?????? | | ?# #????????????????????????????? #?????? | | ?# ## #?????????????????????????????? ?????? | | ?## ### #?????????????????????????????? ????? | | ??# #?# #?????????????????????????????? #???? | | ??# #?# ##??????????????????????????????? ##???? | | ??# #?###???????????????????????????????????????? | | ??####???????????????????????????????????????????? | | ?????????????????????????????????????????????????? | | ?????????????????????????????????????????????????? | | ?????????????????????????????????????????????????? | | ?????????????????????????????????????????????????? | | ?????????????????????????????????????????????????? | | ?????????????????????????????????????????????????? | +----------------------------------------------------+ Best States ------------- Heat Dissipation 35 Energy Generation 15 Energy Capacity 250 Matter Stores 300 Matter Capacity 300 Sight Range 16 Robot Scan Range 14 Terrain Scan Density 10 Evasion (%) 62 Targeting Accuracy 10 Recoil Reduction 1 Item Schematics ----------------- Signal Interpreter | -10/Materials | Hacked Robot Schematics ------------------ None Fabricated ------------ Nothing Repaired ---------- Nothing Studied --------- None Alien Tech Used ----------------- None Achievements -------------- None Challenges ------------ None Game ------ Seed ShadingDirtyDiverter Manual? 0 Play Time 00:27:11 Cumulative 16.9 hours Start 2026.03.23 @ 15:52:50 End 2026.03.23 @ 16:22:47 Sessions 1 Manual Loads 0 Difficulty Rogue Special Mode None Game No. 24 Rogue 24 Adventurer 0 Explorer 0 Win Type - Total 0 Types 0/0/0/0/0/0/0/0/0/0 Lore% 9 Gallery% 16 Achievement% 15 Wizard Run 0 Options --------- Layout 1 ASCII 0 Keyboard 0 Movement Mouse Keybinds 0 Fullscreen 1 Font 48/Smallcaps Map View 50x35 Zoom Use 0% Tactical HUD 1 Map Filters NONE Filters NONE Steam 1 RUN: 62ea8484-4eff-4ccd-be5e-2010b3e27e86